[Event "*** Titled Tuesday Blitz"]
[Site "Chess.com"]
[Date "2020.05.05"]
[Round "1"]
[White "InitiatingASC"]
[Black "DenisQ"]
[Result "0-1"]
[WhiteElo "2324"]
[BlackElo "2650"]
[TimeControl "180+1"]
[EndTime "10:07:26 PDT"]
[Termination "DenisQ won by resignation"]

1. d4 {[%clk 0:03:00.9]} 1... d5 {[%clk 0:02:57]} 2. c4 {[%clk 0:03:00.8]} 2...
c6 {[%clk 0:02:56.4]} 3. Nf3 {[%clk 0:02:56.6]} 3... Nf6 {[%clk 0:02:55.8]} 4.
e3 {[%clk 0:02:51.4]} 4... Bf5 {[%clk 0:02:54.6]} 5. Be2 {[%clk 0:02:49.1]} 5...
e6 {[%clk 0:02:53.3]} 6. O-O {[%clk 0:02:49.3]} 6... Nbd7 {[%clk 0:02:52.7]} 7.
b3 {[%clk 0:02:48.2]} 7... Bd6 {[%clk 0:02:51.8]} 8. Bb2 {[%clk 0:02:48.4]} 8...
O-O {[%clk 0:02:51.2]} 9. Nbd2 {[%clk 0:02:47.1]} 9... Ne4 {[%clk 0:02:47.8]}
10. Ne5 {[%clk 0:02:45.4]} 10... Nxe5 {[%clk 0:02:15.6]} 11. dxe5 {[%clk
0:02:44.7]} 11... Bb4 {[%clk 0:02:11.6]} 12. Nxe4 {[%clk 0:02:40.8]} 12... Bxe4
{[%clk 0:02:10.7]} 13. Bd3 {[%clk 0:02:25.5]} 13... Bxd3 {[%clk 0:02:03]} 14.
Qxd3 {[%clk 0:02:24.5]} 14... dxc4 {[%clk 0:01:56.7]} 15. Qxc4 {[%clk
0:02:19.6]} 15... Be7 {[%clk 0:01:52.7]} 16. Rfd1 {[%clk 0:02:16.5]} 16... Qc7
{[%clk 0:01:52.3]} 17. Rd3 {[%clk 0:02:06.1]} 17... Rad8 {[%clk 0:01:49.8]} 18.
Rad1 {[%clk 0:02:06.6]} 18... Rxd3 {[%clk 0:01:49.5]} 19. Rxd3 {[%clk
0:02:03.2]} 19... Rd8 {[%clk 0:01:49.1]} 20. Rd4 {[%clk 0:01:57.2]} 20... c5
{[%clk 0:01:46.1]} 21. Rxd8+ {[%clk 0:01:47.3]} 21... Qxd8 {[%clk 0:01:45.3]}
22. Qc2 {[%clk 0:01:47.9]} 22... b5 {[%clk 0:01:35.6]} 23. a3 {[%clk 0:01:23.9]}
23... h6 {[%clk 0:01:30.7]} 24. h3 {[%clk 0:01:20.2]} 24... Qd5 {[%clk
0:01:23.7]} 25. Bc3 {[%clk 0:01:16.8]} 25... c4 {[%clk 0:01:21.5]} 26. b4 {[%clk
0:01:07.4]} 26... h5 {[%clk 0:00:57.1]} 27. Qd2 {[%clk 0:01:04.6]} 27... Qxd2
{[%clk 0:00:55.9]} 28. Bxd2 {[%clk 0:01:04.4]} 28... f6 {[%clk 0:00:37.9]} 29.
f4 {[%clk 0:00:57]} 29... fxe5 {[%clk 0:00:37.3]} 30. fxe5 {[%clk 0:00:57]}
30... Bh4 {[%clk 0:00:32.9]} 31. Kf1 {[%clk 0:00:54.1]} 31... Kf7 {[%clk
0:00:32.3]} 32. Ke2 {[%clk 0:00:52.4]} 32... Bg3 {[%clk 0:00:30.4]} 33. Bc3
{[%clk 0:00:51.8]} 33... Kg6 {[%clk 0:00:26.9]} 34. e4 {[%clk 0:00:47.6]} 34...
Bf4 {[%clk 0:00:25.2]} 35. Bb2 {[%clk 0:00:27.8]} 35... a6 {[%clk 0:00:24.9]}
36. Ke1 {[%clk 0:00:14.2]} 36... Kg5 {[%clk 0:00:24.1]} 37. Bc3 {[%clk
0:00:09.4]} 37... Bc1 {[%clk 0:00:22.7]} 38. Ke2 {[%clk 0:00:09]} 38... Kf4
{[%clk 0:00:21.6]} 0-1

[Event "*** Titled Tuesday Blitz"]
[Site "Chess.com"]
[Date "2020.05.05"]
[Round "1"]
[White "asimali1977"]
[Black "awesomevishesh"]
[Result "0-1"]
[WhiteElo "1958"]
[BlackElo "2479"]
[TimeControl "180+1"]
[EndTime "10:07:26 PDT"]
[Termination "awesomevishesh won by checkmate"]

1. Nf3 {[%clk 0:03:00.2]} 1... Nf6 {[%clk 0:02:59.4]} 2. g3 {[%clk 0:03:00]}
2... g6 {[%clk 0:02:58.1]} 3. Bg2 {[%clk 0:03:00.2]} 3... Bg7 {[%clk 0:02:58.2]}
4. O-O {[%clk 0:03:00.7]} 4... O-O {[%clk 0:02:58.2]} 5. d3 {[%clk 0:03:00.8]}
5... d5 {[%clk 0:02:57.6]} 6. Nbd2 {[%clk 0:03:00.4]} 6... c5 {[%clk 0:02:57.1]}
7. Re1 {[%clk 0:02:59.3]} 7... Nc6 {[%clk 0:02:56.4]} 8. e4 {[%clk 0:02:59]}
8... e5 {[%clk 0:02:56]} 9. c3 {[%clk 0:02:53.8]} 9... Re8 {[%clk 0:02:49.4]}
10. Qc2 {[%clk 0:02:51.6]} 10... h6 {[%clk 0:02:46.1]} 11. Nf1 {[%clk
0:02:43.2]} 11... Be6 {[%clk 0:02:43.1]} 12. Ne3 {[%clk 0:02:25.4]} 12... Qd7
{[%clk 0:02:29.5]} 13. Bd2 {[%clk 0:02:07.5]} 13... Rad8 {[%clk 0:02:28.6]} 14.
Rad1 {[%clk 0:02:04.5]} 14... Kh7 {[%clk 0:02:19.4]} 15. Bc1 {[%clk 0:02:02.8]}
15... Qc7 {[%clk 0:02:15.6]} 16. b3 {[%clk 0:01:56.6]} 16... d4 {[%clk
0:01:59.6]} 17. cxd4 {[%clk 0:01:49.3]} 17... cxd4 {[%clk 0:01:57.9]} 18. Nc4
{[%clk 0:01:43.5]} 18... Nb4 {[%clk 0:01:42.7]} 19. Qd2 {[%clk 0:01:42.8]} 19...
Nc6 {[%clk 0:01:36.8]} 20. Ba3 {[%clk 0:01:37.5]} 20... b5 {[%clk 0:01:34]} 21.
Ncxe5 {[%clk 0:01:12.6]} 21... Nxe5 {[%clk 0:01:31.3]} 22. Nxe5 {[%clk
0:01:12.5]} 22... Qxe5 {[%clk 0:01:30.5]} 23. f4 {[%clk 0:01:10.3]} 23... Qh5
{[%clk 0:01:19.5]} 24. Rc1 {[%clk 0:01:03.3]} 24... Rc8 {[%clk 0:01:11.6]} 25.
Bc5 {[%clk 0:00:59.9]} 25... Rxc5 {[%clk 0:01:08.7]} 26. Rxc5 {[%clk 0:00:58.4]}
26... Qxc5 {[%clk 0:01:08.2]} 27. Rc1 {[%clk 0:00:58.6]} 27... Qb6 {[%clk
0:01:07.7]} 28. h3 {[%clk 0:00:53]} 28... Rc8 {[%clk 0:01:06]} 29. e5 {[%clk
0:00:46.8]} 29... Rxc1+ {[%clk 0:01:04.1]} 30. Qxc1 {[%clk 0:00:46.8]} 30... Nd5
{[%clk 0:01:05]} 31. g4 {[%clk 0:00:44.2]} 31... Nc3 {[%clk 0:01:00.8]} 32. Kh2
{[%clk 0:00:34.5]} 32... g5 {[%clk 0:00:57.6]} 33. f5 {[%clk 0:00:33.5]} 33...
Bxe5+ {[%clk 0:00:57.3]} 34. Kh1 {[%clk 0:00:31.9]} 34... Bd7 {[%clk 0:00:56.2]}
35. Qa3 {[%clk 0:00:26.7]} 35... b4 {[%clk 0:00:54.3]} 36. Qc1 {[%clk
0:00:23.9]} 36... Bc6 {[%clk 0:00:54.1]} 37. Qg1 {[%clk 0:00:19.2]} 37... Kg7
{[%clk 0:00:52.4]} 38. Qf2 {[%clk 0:00:15.1]} 38... Qb7 {[%clk 0:00:50.2]} 39.
Bxc6 {[%clk 0:00:12]} 39... Qxc6+ {[%clk 0:00:50]} 40. Kg1 {[%clk 0:00:12.1]}
40... Nd5 {[%clk 0:00:45.7]} 41. h4 {[%clk 0:00:09.6]} 41... Qc1+ {[%clk
0:00:44.3]} 42. Kg2 {[%clk 0:00:08.1]} 42... Ne3+ {[%clk 0:00:44.2]} 43. Kf3
{[%clk 0:00:06.9]} 43... Qh1+ {[%clk 0:00:42.1]} 44. Ke2 {[%clk 0:00:05.8]}
44... Qd1# {[%clk 0:00:41.6]} 0-1

[Event "*** Titled Tuesday Blitz"]
[Site "Chess.com"]
[Date "2020.05.05"]
[Round "1"]
[White "platy3"]
[Black "GiorgianBarbosa"]
[Result "1-0"]
[WhiteElo "2704"]
[BlackElo "2361"]
[TimeControl "180+1"]
[EndTime "10:07:27 PDT"]
[Termination "platy3 won by resignation"]

1. e4 {[%clk 0:02:58.7]} 1... c5 {[%clk 0:02:59]} 2. Nf3 {[%clk 0:02:58]} 2...
g6 {[%clk 0:02:59.7]} 3. d4 {[%clk 0:02:57.8]} 3... cxd4 {[%clk 0:03:00.6]} 4.
Nxd4 {[%clk 0:02:58.4]} 4... Bg7 {[%clk 0:03:00.7]} 5. c4 {[%clk 0:02:58.9]}
5... Nc6 {[%clk 0:03:01.3]} 6. Be3 {[%clk 0:02:59]} 6... Nf6 {[%clk 0:03:01.8]}
7. Nc3 {[%clk 0:02:59]} 7... O-O {[%clk 0:03:02.4]} 8. Be2 {[%clk 0:02:57.6]}
8... d6 {[%clk 0:03:01.8]} 9. O-O {[%clk 0:02:57.8]} 9... Bd7 {[%clk 0:03:02.1]}
10. h3 {[%clk 0:02:55.8]} 10... Nxd4 {[%clk 0:03:01.8]} 11. Bxd4 {[%clk
0:02:54.4]} 11... Bc6 {[%clk 0:03:02.3]} 12. Qc2 {[%clk 0:02:54.6]} 12... Nd7
{[%clk 0:03:01.5]} 13. Bxg7 {[%clk 0:02:53.8]} 13... Kxg7 {[%clk 0:03:02.4]} 14.
b4 {[%clk 0:02:50.3]} 14... b6 {[%clk 0:02:57]} 15. Rad1 {[%clk 0:02:49.2]}
15... Qc7 {[%clk 0:02:54.5]} 16. f4 {[%clk 0:02:47]} 16... a5 {[%clk 0:02:36.7]}
17. a3 {[%clk 0:02:43.1]} 17... axb4 {[%clk 0:02:24.5]} 18. axb4 {[%clk
0:02:44]} 18... Rfc8 {[%clk 0:02:10]} 19. Qb2 {[%clk 0:02:43.3]} 19... Kg8
{[%clk 0:01:52.9]} 20. Rfe1 {[%clk 0:02:34.6]} 20... Qa7 {[%clk 0:01:39.8]} 21.
Kh2 {[%clk 0:02:25.4]} 21... Qa3 {[%clk 0:01:34.5]} 22. Qxa3 {[%clk 0:01:41.2]}
22... Rxa3 {[%clk 0:01:35.4]} 23. Nd5 {[%clk 0:01:41.5]} 23... Bxd5 {[%clk
0:01:32.4]} 24. cxd5 {[%clk 0:01:41.4]} 24... Rc2 {[%clk 0:01:20.3]} 25. Rc1
{[%clk 0:01:38.4]} 25... Rac3 {[%clk 0:01:05.4]} 26. Rxc2 {[%clk 0:01:38.7]}
26... Rxc2 {[%clk 0:01:06.3]} 27. Bf3 {[%clk 0:01:39]} 27... Rb2 {[%clk
0:00:59.3]} 28. Rc1 {[%clk 0:01:22]} 28... Rxb4 {[%clk 0:00:45.7]} 29. Rc7
{[%clk 0:01:21.8]} 29... Nc5 {[%clk 0:00:37.8]} 30. Rxe7 {[%clk 0:01:17.1]}
30... Kf8 {[%clk 0:00:37]} 31. Rc7 {[%clk 0:01:15.1]} 31... Nxe4 {[%clk
0:00:36.2]} 32. f5 {[%clk 0:00:58.2]} 32... Kg7 {[%clk 0:00:28.3]} 33. fxg6
{[%clk 0:00:54.1]} 33... hxg6 {[%clk 0:00:28.3]} 34. Bg4 {[%clk 0:00:50.4]}
34... Kf6 {[%clk 0:00:20.6]} 35. Bd7 {[%clk 0:00:50.1]} 35... Ke5 {[%clk
0:00:19]} 36. Be8 {[%clk 0:00:50.3]} 36... f5 {[%clk 0:00:14.4]} 37. Bxg6 {[%clk
0:00:49.8]} 37... b5 {[%clk 0:00:08.3]} 38. Re7+ {[%clk 0:00:45.6]} 38... Kxd5
{[%clk 0:00:08.4]} 39. Bxf5 {[%clk 0:00:45.7]} 39... Nc5 {[%clk 0:00:04.6]} 40.
Bh7 {[%clk 0:00:38.5]} 40... Rf4 {[%clk 0:00:05]} 41. Kg3 {[%clk 0:00:35.9]}
41... Rf6 {[%clk 0:00:05.2]} 42. h4 {[%clk 0:00:34.4]} 42... b4 {[%clk
0:00:05.7]} 43. Re8 {[%clk 0:00:27.1]} 43... b3 {[%clk 0:00:06]} 44. Rb8 {[%clk
0:00:27.3]} 44... Rf7 {[%clk 0:00:06.4]} 45. Bg8 {[%clk 0:00:27.3]} 1-0

[Event "*** Titled Tuesday Blitz"]
[Site "Chess.com"]
[Date "2020.05.05"]
[Round "1"]
[White "dianosky"]
[Black "temus_galaktionov"]
[Result "0-1"]
[WhiteElo "2397"]
[BlackElo "2772"]
[TimeControl "180+1"]
[EndTime "10:07:28 PDT"]
[Termination "temus_galaktionov won on time"]

1. d4 {[%clk 0:02:56.3]} 1... c6 {[%clk 0:03:00.7]} 2. c4 {[%clk 0:02:55.9]}
2... g6 {[%clk 0:03:00.8]} 3. Nc3 {[%clk 0:02:55.7]} 3... Bg7 {[%clk 0:03:00.4]}
4. e4 {[%clk 0:02:55.8]} 4... d6 {[%clk 0:02:57.9]} 5. Be3 {[%clk 0:02:55.3]}
5... Nd7 {[%clk 0:02:58.8]} 6. Qd2 {[%clk 0:02:54.6]} 6... e5 {[%clk 0:02:59.2]}
7. Nge2 {[%clk 0:02:52.1]} 7... Ngf6 {[%clk 0:02:57.6]} 8. f3 {[%clk 0:02:51.3]}
8... O-O {[%clk 0:02:56.6]} 9. O-O-O {[%clk 0:02:48]} 9... Qa5 {[%clk
0:02:55.9]} 10. Kb1 {[%clk 0:02:44.1]} 10... Re8 {[%clk 0:02:47.7]} 11. Nc1
{[%clk 0:02:41.2]} 11... Qc7 {[%clk 0:02:41.2]} 12. Nb3 {[%clk 0:02:35.4]} 12...
a5 {[%clk 0:02:39.6]} 13. Na4 {[%clk 0:02:12.6]} 13... Rb8 {[%clk 0:02:26.3]}
14. Rc1 {[%clk 0:01:48.4]} 14... Qd8 {[%clk 0:02:10.4]} 15. Qxa5 {[%clk
0:01:39.7]} 15... Qxa5 {[%clk 0:02:05.1]} 16. Nxa5 {[%clk 0:01:39.6]} 16... Ra8
{[%clk 0:02:06]} 17. b4 {[%clk 0:01:38.4]} 17... b6 {[%clk 0:02:05.8]} 18. dxe5
{[%clk 0:01:35.3]} 18... bxa5 {[%clk 0:01:48.8]} 19. exf6 {[%clk 0:01:35.4]}
19... Bxf6 {[%clk 0:01:48.5]} 20. b5 {[%clk 0:01:35.3]} 20... Bb7 {[%clk
0:01:46.5]} 21. Nb6 {[%clk 0:01:33.2]} 21... Nxb6 {[%clk 0:01:45.9]} 22. Bxb6
{[%clk 0:01:33.4]} 22... a4 {[%clk 0:01:44.6]} 23. Bd3 {[%clk 0:01:07.1]} 23...
Rac8 {[%clk 0:01:39.1]} 24. Rhd1 {[%clk 0:01:05]} 24... cxb5 {[%clk 0:01:30.7]}
25. cxb5 {[%clk 0:01:04.9]} 25... d5 {[%clk 0:01:31.1]} 26. exd5 {[%clk
0:00:59.3]} 26... Bxd5 {[%clk 0:01:30.7]} 27. Rxc8 {[%clk 0:00:58.8]} 27... Rxc8
{[%clk 0:01:28.6]} 28. Bxg6 {[%clk 0:00:54.2]} 28... Be6 {[%clk 0:00:20]} 29.
Bd3 {[%clk 0:00:30.5]} 29... Kf8 {[%clk 0:00:17]} 30. Rc1 {[%clk 0:00:18.3]}
30... Rb8 {[%clk 0:00:16.6]} 31. Bc7 {[%clk 0:00:15.6]} 31... Rb7 {[%clk
0:00:16.7]} 32. b6 {[%clk 0:00:15.6]} 32... Bd4 {[%clk 0:00:16.4]} 33. Be4
{[%clk 0:00:04.9]} 33... Rxb6+ {[%clk 0:00:16.5]} 34. Bxb6 {[%clk 0:00:04.7]}
34... Bxb6 {[%clk 0:00:17.2]} 0-1

[Event "*** Titled Tuesday Blitz"]
[Site "Chess.com"]
[Date "2020.05.05"]
[Round "1"]
[White "Witaliss"]
[Black "MoreChessJulia"]
[Result "1-0"]
[WhiteElo "2473"]
[BlackElo "1789"]
[TimeControl "180+1"]
[EndTime "10:07:29 PDT"]
[Termination "Witaliss won by resignation"]

1. d4 {[%clk 0:02:59.8]} 1... c5 {[%clk 0:02:56.9]} 2. d5 {[%clk 0:02:59]} 2...
e6 {[%clk 0:02:56]} 3. c4 {[%clk 0:02:59]} 3... Nf6 {[%clk 0:02:55.2]} 4. Nc3
{[%clk 0:02:58.3]} 4... exd5 {[%clk 0:02:55.5]} 5. cxd5 {[%clk 0:02:58.2]} 5...
Bd6 {[%clk 0:02:56]} 6. Nf3 {[%clk 0:02:54.5]} 6... Bc7 {[%clk 0:02:55.7]} 7. e4
{[%clk 0:02:50.7]} 7... d6 {[%clk 0:02:55.4]} 8. Bb5+ {[%clk 0:02:46.1]} 8...
Nbd7 {[%clk 0:02:55.2]} 9. a4 {[%clk 0:02:44.1]} 9... a6 {[%clk 0:02:55.1]} 10.
Bd3 {[%clk 0:02:43.1]} 10... O-O {[%clk 0:02:53.6]} 11. O-O {[%clk 0:02:42]}
11... Re8 {[%clk 0:02:53.4]} 12. Bf4 {[%clk 0:02:39]} 12... Nf8 {[%clk
0:02:53.2]} 13. h3 {[%clk 0:02:36.6]} 13... Ba5 {[%clk 0:02:49.9]} 14. Re1
{[%clk 0:02:29.9]} 14... Ng6 {[%clk 0:02:45.6]} 15. Bh2 {[%clk 0:02:28.5]} 15...
Ne5 {[%clk 0:02:40.5]} 16. Bxe5 {[%clk 0:02:14.5]} 16... dxe5 {[%clk 0:02:39.9]}
17. Nd2 {[%clk 0:02:13.9]} 17... g6 {[%clk 0:02:24.2]} 18. Nc4 {[%clk
0:02:13.3]} 18... Bc7 {[%clk 0:02:22.7]} 19. Bc2 {[%clk 0:02:05.1]} 19... Bd6
{[%clk 0:02:21.4]} 20. a5 {[%clk 0:02:03.2]} 20... Nh5 {[%clk 0:02:14]} 21. Ba4
{[%clk 0:01:59.4]} 21... Rf8 {[%clk 0:02:10]} 22. Nb6 {[%clk 0:01:56.4]} 22...
Rb8 {[%clk 0:02:08.7]} 23. Nb1 {[%clk 0:01:45]} 23... Qg5 {[%clk 0:02:03.5]} 24.
Ra3 {[%clk 0:01:34.7]} 24... Nf4 {[%clk 0:02:02.1]} 25. Rg3 {[%clk 0:01:32.9]}
25... Qe7 {[%clk 0:01:47.9]} 26. Nd2 {[%clk 0:01:30.8]} 26... h5 {[%clk
0:01:43.8]} 27. Ndc4 {[%clk 0:01:23.8]} 27... h4 {[%clk 0:01:39.5]} 28. Rf3
{[%clk 0:01:23.1]} 28... Qg5 {[%clk 0:01:32.1]} 29. Rxf4 {[%clk 0:01:22]} 29...
exf4 {[%clk 0:01:28.7]} 30. Nxd6 {[%clk 0:01:20.4]} 30... Bxh3 {[%clk
0:01:28.1]} 31. Qf3 {[%clk 0:01:18]} 31... Bg4 {[%clk 0:01:27.7]} 32. Qc3 {[%clk
0:01:09.7]} 32... f3 {[%clk 0:01:25.7]} 33. Qe3 {[%clk 0:01:04.6]} 33... Qe5
{[%clk 0:01:12.6]} 34. Nbc4 {[%clk 0:00:58.1]} 34... Qh5 {[%clk 0:01:03.6]} 35.
Qf4 {[%clk 0:00:53.2]} 35... h3 {[%clk 0:01:01.4]} 36. gxh3 {[%clk 0:00:48]}
36... Qxh3 {[%clk 0:00:55.1]} 37. Qh2 {[%clk 0:00:47.1]} 37... Kg7 {[%clk
0:00:48.3]} 38. Qxh3 {[%clk 0:00:46.4]} 38... Bxh3 {[%clk 0:00:48.3]} 39. Kh2
{[%clk 0:00:45]} 39... Rh8 {[%clk 0:00:46.2]} 40. Kg3 {[%clk 0:00:43.6]} 40...
Bg2 {[%clk 0:00:40.9]} 41. e5 {[%clk 0:00:40.4]} 41... Rh3+ {[%clk 0:00:32.2]}
42. Kf4 {[%clk 0:00:39.9]} 42... Rbh8 {[%clk 0:00:29.1]} 43. e6 {[%clk
0:00:36.9]} 43... R8h4+ {[%clk 0:00:28.3]} 44. Ke3 {[%clk 0:00:35.8]} 44... fxe6
{[%clk 0:00:27.4]} 45. dxe6 {[%clk 0:00:35.2]} 45... Rd4 {[%clk 0:00:24.2]} 46.
e7 {[%clk 0:00:32.5]} 1-0

[Event "*** Titled Tuesday Blitz"]
[Site "Chess.com"]
[Date "2020.05.05"]
[Round "1"]
[White "Anton_Demchenko"]
[Black "mbachez"]
[Result "1-0"]
[WhiteElo "2848"]
[BlackElo "2438"]
[TimeControl "180+1"]
[EndTime "10:07:30 PDT"]
[Termination "Anton_Demchenko won by resignation"]

1. d4 {[%clk 0:03:00.1]} 1... Nf6 {[%clk 0:02:58.7]} 2. Nf3 {[%clk 0:02:56.3]}
2... d5 {[%clk 0:02:58.2]} 3. Bf4 {[%clk 0:02:56.2]} 3... e6 {[%clk 0:02:58.5]}
4. e3 {[%clk 0:02:56.8]} 4... Bd6 {[%clk 0:02:58.6]} 5. Ne5 {[%clk 0:02:57.3]}
5... O-O {[%clk 0:02:55.2]} 6. Nd2 {[%clk 0:02:56.3]} 6... c5 {[%clk 0:02:55.3]}
7. c3 {[%clk 0:02:55.7]} 7... Qc7 {[%clk 0:02:54.4]} 8. Bd3 {[%clk 0:02:55.6]}
8... Nc6 {[%clk 0:02:53.3]} 9. Ndf3 {[%clk 0:02:55.9]} 9... h6 {[%clk
0:02:43.1]} 10. h4 {[%clk 0:02:39.9]} 10... Nd7 {[%clk 0:02:37.8]} 11. Nxd7
{[%clk 0:02:24.4]} 11... Bxd7 {[%clk 0:02:28.3]} 12. Bxd6 {[%clk 0:02:12.8]}
12... Qxd6 {[%clk 0:02:28.1]} 13. dxc5 {[%clk 0:02:09.3]} 13... Qxc5 {[%clk
0:02:25.3]} 14. e4 {[%clk 0:02:09.8]} 14... Rae8 {[%clk 0:02:08.6]} 15. O-O
{[%clk 0:01:47.5]} 15... Qb6 {[%clk 0:01:35.7]} 16. Qe2 {[%clk 0:01:42.6]} 16...
Ne7 {[%clk 0:01:03.3]} 17. Rfe1 {[%clk 0:01:36.8]} 17... Ng6 {[%clk 0:01:02.4]}
18. g3 {[%clk 0:01:34.9]} 18... Bc6 {[%clk 0:01:01.6]} 19. e5 {[%clk 0:01:32.9]}
19... Qc7 {[%clk 0:00:53.4]} 20. Nd4 {[%clk 0:01:27.5]} 20... Re7 {[%clk
0:00:48]} 21. h5 {[%clk 0:01:24.5]} 21... Nh8 {[%clk 0:00:46.1]} 22. f4 {[%clk
0:01:21.2]} 22... Be8 {[%clk 0:00:43.9]} 23. Qg4 {[%clk 0:01:17.7]} 23... f5
{[%clk 0:00:42.3]} 24. Qf3 {[%clk 0:01:10.5]} 24... Nf7 {[%clk 0:00:37.6]} 25.
Re2 {[%clk 0:01:02.9]} 25... Nd8 {[%clk 0:00:32.4]} 26. g4 {[%clk 0:00:57.3]}
26... fxg4 {[%clk 0:00:31.5]} 27. Qxg4 {[%clk 0:00:57.7]} 27... Ref7 {[%clk
0:00:30.2]} 28. Rf1 {[%clk 0:00:56.6]} 28... Qb6 {[%clk 0:00:27.7]} 29. Kh1
{[%clk 0:00:38.6]} 29... Re7 {[%clk 0:00:27.1]} 30. Rg2 {[%clk 0:00:36.7]} 30...
Qc7 {[%clk 0:00:21.6]} 31. Re1 {[%clk 0:00:16.1]} 31... a6 {[%clk 0:00:19.8]}
32. f5 {[%clk 0:00:15.7]} 32... Ref7 {[%clk 0:00:19.8]} 33. f6 {[%clk
0:00:15.2]} 33... Bc6 {[%clk 0:00:15.2]} 34. Qg6 {[%clk 0:00:12.7]} 34... Rxf6
{[%clk 0:00:11.4]} 35. Qh7+ {[%clk 0:00:12.3]} 35... Kf7 {[%clk 0:00:11.4]} 36.
Rxg7+ {[%clk 0:00:11.6]} 36... Ke8 {[%clk 0:00:12.3]} 37. Rxc7 {[%clk 0:00:10]}
37... R6f7 {[%clk 0:00:12.8]} 38. Rxf7 {[%clk 0:00:09.8]} 38... Nxf7 {[%clk
0:00:12.1]} 39. Bg6 {[%clk 0:00:09.3]} 39... Ke7 {[%clk 0:00:11.2]} 40. Rf1
{[%clk 0:00:09.8]} 40... Be8 {[%clk 0:00:10.2]} 41. Qg7 {[%clk 0:00:10]} 1-0

[Event "*** Titled Tuesday Blitz"]
[Site "Chess.com"]
[Date "2020.05.05"]
[Round "1"]
[White "Sven_Tica"]
[Black "BvsN"]
[Result "1-0"]
[WhiteElo "2715"]
[BlackElo "2369"]
[TimeControl "180+1"]
[EndTime "10:07:30 PDT"]
[Termination "Sven_Tica won on time"]

1. d4 {[%clk 0:03:00.9]} 1... d5 {[%clk 0:02:58.9]} 2. c4 {[%clk 0:03:01.4]}
2... c6 {[%clk 0:02:58.7]} 3. Nf3 {[%clk 0:03:00.8]} 3... Nf6 {[%clk 0:02:58.7]}
4. Qc2 {[%clk 0:03:01.2]} 4... dxc4 {[%clk 0:02:58.1]} 5. Qxc4 {[%clk
0:03:00.4]} 5... Bg4 {[%clk 0:02:57.5]} 6. Nbd2 {[%clk 0:03:00.9]} 6... Nbd7
{[%clk 0:02:53.2]} 7. g3 {[%clk 0:03:01.4]} 7... e6 {[%clk 0:02:52.1]} 8. Bg2
{[%clk 0:03:02.1]} 8... Be7 {[%clk 0:02:51.8]} 9. O-O {[%clk 0:03:02.9]} 9...
O-O {[%clk 0:02:51.9]} 10. Qb3 {[%clk 0:03:03.6]} 10... Qb6 {[%clk 0:02:50.3]}
11. Nc4 {[%clk 0:03:04.3]} 11... Qa6 {[%clk 0:02:50.4]} 12. Bf4 {[%clk
0:03:00.3]} 12... Rac8 {[%clk 0:02:46.4]} 13. Nfe5 {[%clk 0:02:42.8]} 13... Bh5
{[%clk 0:02:38.8]} 14. e3 {[%clk 0:02:32.7]} 14... Nb6 {[%clk 0:02:19.2]} 15.
Rfc1 {[%clk 0:02:24.2]} 15... Nxc4 {[%clk 0:02:18.9]} 16. Rxc4 {[%clk
0:02:17.6]} 16... Rfd8 {[%clk 0:02:14.4]} 17. Rac1 {[%clk 0:02:16.2]} 17... Nd5
{[%clk 0:02:01.8]} 18. g4 {[%clk 0:01:46.2]} 18... Nxf4 {[%clk 0:01:43]} 19.
exf4 {[%clk 0:01:47.1]} 19... Bg6 {[%clk 0:01:41.2]} 20. f5 {[%clk 0:01:42.3]}
20... exf5 {[%clk 0:01:38.9]} 21. gxf5 {[%clk 0:01:43.2]} 21... Bh5 {[%clk
0:01:31.7]} 22. d5 {[%clk 0:01:06.3]} 22... c5 {[%clk 0:01:02.2]} 23. a4 {[%clk
0:01:06.4]} 23... Bd6 {[%clk 0:00:58.1]} 24. Nd3 {[%clk 0:00:47.6]} 24... Be2
{[%clk 0:00:53.6]} 25. Re1 {[%clk 0:00:44.8]} 25... Re8 {[%clk 0:00:44.3]} 26.
Bf1 {[%clk 0:00:36.8]} 26... Bxf1 {[%clk 0:00:31.5]} 27. Rxe8+ {[%clk
0:00:36.6]} 27... Rxe8 {[%clk 0:00:31.5]} 28. Kxf1 {[%clk 0:00:37.3]} 28... b6
{[%clk 0:00:26.8]} 29. Kg2 {[%clk 0:00:34.3]} 29... Qc8 {[%clk 0:00:26.4]} 30.
Qb5 {[%clk 0:00:23.9]} 30... Re7 {[%clk 0:00:19]} 31. Qc6 {[%clk 0:00:18.1]}
31... Qd8 {[%clk 0:00:10.4]} 32. f6 {[%clk 0:00:15.1]} 32... Rc7 {[%clk
0:00:09.6]} 33. Qb5 {[%clk 0:00:13.3]} 33... g6 {[%clk 0:00:04]} 34. Re4 {[%clk
0:00:10.6]} 34... Rc8 {[%clk 0:00:03.8]} 35. Ne5 {[%clk 0:00:07.5]} 35... Bxe5
{[%clk 0:00:02.4]} 36. Rxe5 {[%clk 0:00:08.4]} 36... Qxf6 {[%clk 0:00:02.4]} 37.
Re8+ {[%clk 0:00:08.1]} 37... Rxe8 {[%clk 0:00:02.5]} 38. Qxe8+ {[%clk 0:00:09]}
38... Kg7 {[%clk 0:00:02.7]} 39. Qd7 {[%clk 0:00:08.8]} 39... Qg5+ {[%clk
0:00:02.3]} 40. Kf3 {[%clk 0:00:09.3]} 40... Qf6+ {[%clk 0:00:01.3]} 41. Ke4
{[%clk 0:00:09.5]} 1-0